Cogmind - Beta 16 @@@ ROGUE MODE // 2026.01.18 @ 11:55:05 Player: Glyb Result: Destroyed by Y-45 Defender with Heavy Assault Rifle Performance ------------- Evolutions (2) 1000 Regions Visited (6) 1200 Robots Destroyed (53) 265 Value Destroyed (1386) 1386 Prototype IDs (3) 60 Alien Tech Used (0) 0 Bonus (30) 30 TOTAL SCORE: 3941 Bonus ------- High Alert Combat Kills 30 Cogmind --------- Core Integrity 0/550 Matter 156/300 Energy 59/100 System Corruption 1% Temperature Cool (33) Movement Core (50) Location -8/Materials Parts ------- > --- POWER (1) -------- (None) > --- PROPULSION (4) --- (None) > --- UTILITY (4) ------ (None) > --- WEAPON (2) ------- (None) > --- INVENTORY (5) ---- Aerolev Unit Gravmag System Improved Sensor Array Hacking Suite Peak State ------------ > --- POWER ------------ Cooled Ion Engine > --- PROPULSION ------- Aerolev Unit Aerolev Unit Gravmag System Gravmag System > --- UTILITY ---------- Improved Heat Sink Advanced Visual Processing Unit Hacking Suite Hacking Suite > --- WEAPON ----------- High-powered Shotgun Gauss Rifle > --- INVENTORY -------- Cooled Ion Engine Improved Sensor Array Hacking Suite Pulse Rifle High-powered Shotgun [Rating: 39] Favorites ----------- Power Cooled Ion Engine Engine Cooled Ion Engine Propulsion Light Treads Treads Light Treads Hover Unit Aerolev Unit Flight Unit Improved Flight Unit Utility Small Storage Unit Device Heat Sink Storage Small Storage Unit Processor Visual Processing Unit Hackware Hacking Suite Protection Light Armor Plating Weapon Light Assault Rifle Energy Gun Beam Rifle Energy Cannon Particle Cannon Ballistic Gun Light Assault Rifle Launcher Grenade Launcher Slashing Weapon Blade Saw Build | -11 -10 -9 -9 -9 -8 -8 ------- Run | Yrd Mat Mat Min Exi Min Mat Slots Evolved 4 | . . 2 . . . 2 Power . | . . . . . . . Propulsion 2 | . . . . . . 2 Utility 2 | . . 2 . . . . Weapon . | . . . . . . . Parts Attached 49 | 6 8 17 1 . 1 16 Power 4 | 1 1 1 . . . 1 Engine 4 | 1 1 1 . . . 1 Core . | . . . . . . . Reactor . | . . . . . . . Propulsion 16 | 2 1 6 . . 1 6 Treads 5 | 2 1 2 . . . . Leg . | . . . . . . . Wheel . | . . . . . . . Hover 10 | . . 3 . . 1 6 Flight 1 | . . 1 . . . . Utility 11 | 1 4 4 1 . . 1 Device 4 | . 2 1 1 . . . Storage 2 | 1 1 . . . . . Processor 2 | . . 1 . . . 1 Hackware 2 | . . 2 . . . . Protection 1 | . 1 . . . . . Artifact . | . . . . . . . Weapon 18 | 2 2 6 . . . 8 Energy Gun 5 | . . 2 . . . 3 Energy Cannon 4 | . . 2 . . . 2 Ballistic Gun 7 | 2 1 2 . . . 2 Ballistic Cannon . | . . . . . . . Launcher 1 | . 1 . . . . . Special Weapon . | . . . . . . . Impact Weapon . | . . . . . . . Slashing Weapon 1 | . . . . . . 1 Piercing Weapon . | . . . . . . . Special Melee Weapon . | . . . . . . . Unidentified Prototypes 3 | . . 3 . . . . Parts Lost 14 | . 2 2 . . 2 8 Power 1 | . 1 . . . . . Propulsion 6 | . . 2 . . 1 3 Utility 3 | . 1 . . . . 2 Weapon 4 | . . . . . 1 3 Highest Loss Streak 5 | . 1 1 . . 2 5 To Critical Strikes . | . . . . . . . Average Backups 6 | 2 7 6 5 5 5 4 Power . | . . 1 1 1 1 . Propulsion 1 | . 1 1 2 2 2 . Utility 2 | . 3 2 1 1 1 1 Weapon 1 | . 2 2 1 1 1 1 Tool/Special . | . . . . . . . Unused Backups 10 | . 3 3 . . . 4 Power 1 | . . 1 . . . . Propulsion 4 | . 1 1 . . . 2 Utility 5 | . 2 1 . . . 2 Weapon . | . . . . . . . Tool/Special . | . . . . . . . Average Slot Usage (%) 90 | . 89 97 100 100 98 74 Engine 10 | . 11 11 11 11 11 6 Treads 16 | . 27 13 . . . . Hover 8 | . . 7 22 22 22 25 Device 6 | . 2 10 11 11 11 6 Storage 10 | . 16 9 . . . . Processor 4 | . . 8 11 11 11 7 Hackware 6 | . . 6 22 22 22 13 Protection 3 | . 2 7 . . . . Energy Gun 2 | . . 7 . . . . Energy Cannon 2 | . . 7 . . . . Ballistic Gun 16 | . 23 7 22 22 21 12 Launcher 2 | . 4 . . . . . Peak Build Rating 39 | 6 8 27 29 29 29 39 Average Rating 14 | 5 6 18 27 29 28 27 On Entrance 17 | . 6 8 27 29 29 26 Avg Prop Armor Cover (%) 9 | . . 9 . . . . Naked Turns 36 | . . . . . . 36 Heaviest Build 26 | 10 17 26 15 15 15 16 Greatest Support 40 | 40 40 40 16 16 16 35 Greatest Overweight (x) 2 | . . 2 . . 1 1 Average Overweight (x) . | . . . . . . . Largest Inventory Capacity 8 | 8 8 8 5 5 5 5 Average Capacity 6 | 7 7 7 5 5 5 5 Most Carried 8 | 3 8 8 5 5 5 5 Average Carried 6 | 2 7 6 5 5 4 4 Final Capacity 8 | 8 8 5 5 5 5 5 Final Carried 8 | 3 8 5 5 5 4 4 Class Distribution -------------------- 69% | Mutant 30% | Hacker-Mutant Dominant Class ---------------- Mutant | -10/Materials Mutant | -9/Materials Hacker-Mutant | -9/Mines Hacker-Mutant | -9/Exiles Hacker-Mutant | -8/Mines Hacker-Mutant | -8/Materials Resources | -11 -10 -9 -9 -9 -8 -8 ----------- Run | Yrd Mat Mat Min Exi Min Mat Matter Collected 1275 | 239 327 511 50 . 16 132 Remotely . | . . . . . . . Salvage Created 1545 | 77 478 705 112 . 16 157 Parts 124 | 12 39 49 8 . 4 12 Haulers Intercepted 2 | . 1 . . . . 1 Recyclers Shooed 3 | . . 2 . . . 1 Parts Field Recycled . | . . . . . . . Retrieved Matter . | . . . . . . . Parts Self-Destructed . | . . . . . . . Prevented . | . . . . . . . Parts Restored . | . . . . . . . Kills | -11 -10 -9 -9 -9 -8 -8 ------- Run | Yrd Mat Mat Min Exi Min Mat Combat Hostiles Destroyed 43 | . 14 21 3 . 2 3 Guns 22 | . 6 8 3 . 2 3 Cannons 13 | . . 13 . . . . AOE 8 | . 8 . . . . . Classes Destroyed 10 | 1 6 1 . . . 2 Worker 1 | . 1 . . . . . Builder 1 | . 1 . . . . . Tunneler 4 | 4 . . . . . . Hauler 2 | . 1 . . . . 1 Operator 2 | . 1 1 . . . . Swarmer 12 | . 3 7 . . 2 . Cutter 1 | . . . . . . 1 Grunt 23 | . 11 9 3 . . . Sentry 6 | . . 5 . . . 1 Hunter 1 | . . . . . . 1 Best Kill Streak 6 | 3 6 5 3 . 2 1 Combat Bots Only 5 | . 4 5 3 . 2 1 Max Kills in Single Turn 3 | 1 3 1 1 . 1 1 Gunslinging . | . . . . . . . Exploded 2 | . 2 . . . . . Melee . | . . . . . . . Uniques/NPCs Destroyed . | . . . . . . . Combat | -11 -10 -9 -9 -9 -8 -8 -------- Run | Yrd Mat Mat Min Exi Min Mat Hostile Shots Fired 297 | . 73 90 15 . 26 93 Missed 79 | . 18 28 5 . 7 21 Hits 218 | . 55 62 10 . 19 72 Melee 30 | . . . . . . 30 Projectile 188 | . 55 62 10 . 19 42 AOE 2 | . . . . . . 2 Critical Strikes 20 | . 1 1 . . . 18 Damage Taken 2978 | . 682 673 140 . 211 1272 Core 902 | . 175 85 12 . 70 560 Absorbed by Shields . | . . . . . . . Regen/Repaired (Parts) 123 | . 123 . . . . . Core Remaining (%) 62 | 100 30 . . . 58 . Volleys Fired 146 | 18 52 44 5 . 2 25 Largest 2 | 2 2 2 2 . 2 2 Hottest 124 | 40 50 124 50 . 50 110 Shots Fired 277 | 36 97 88 10 . 4 42 Gun 234 | 36 86 59 10 . 4 39 Cannon 32 | . . 29 . . . 3 Launcher 11 | . 11 . . . . . Special . | . . . . . . . Kinetic 198 | 36 86 30 10 . 4 32 Thermal 65 | . . 58 . . . 7 Explosive 11 | . 11 . . . . . Electromagnetic 3 | . . . . . . 3 Robot Hit Streak 10 | 10 10 10 6 . 1 6 Robot Miss Streak 5 | 2 3 5 2 . 5 5 Penetration Max . | . . . . . . . Secondary Targets 2 | . . 2 . . . . Max Gunslinging Chain 1 | . . 1 . . . . Shots Hit Robots 186 | 28 64 61 7 . 2 24 Core Hits 96 | 8 37 34 5 . 2 10 Critical Kills . | . . . . . . . Critical Parts Destroyed 2 | . 2 . . . . . Critical Strikes 5 | . 2 3 . . . . Burn 3 | . . 3 . . . . Destroy 2 | . 2 . . . . . Melee Attacks . | . . . . . . . Impact . | . . . . . . . Slashing . | . . . . . . . Piercing . | . . . . . . . Sneak Attacks . | . . . . . . . Combat Hostiles . | . . . . . . . Follow-up Attacks . | . . . . . . . Damage Inflicted 3149 | 219 1092 1140 178 . 47 473 Guns 2071 | 219 498 666 178 . 47 463 Cannons 472 | . . 472 . . . . Explosions 594 | . 594 . . . . . Melee . | . . . . . . . Ramming 12 | . . 2 . . . 10 Kinetic 1670 | 219 498 366 178 . 47 362 Thermal 824 | . . 772 . . . 52 Explosive 594 | . 594 . . . . . Electromagnetic 49 | . . . . . . 49 Impact . | . . . . . . . Slashing . | . . . . . . . Piercing . | . . . . . . . Highest Corruption 1 | . 1 . . . . 1 Average Corruption 1 | . 1 . . . . 1 Corruption Purged . | . . . . . . . Corruption Blocked . | . . . . . . . Effects 3 | . 2 . . . . 1 Message Errors 2 | . 1 . . . . 1 Heat Flow Errors 1 | . 1 . . . . . Overload Shots . | . . . . . . . Overflow Damage 10 | . 10 . . . . . Projectiles . | . . . . . . . Explosions 10 | . 10 . . . . . Melee . | . . . . . . . Knockbacks 1 | . . . . . . 1 Impact 1 | . . . . . . 1 Kinetic . | . . . . . . . Secondary . | . . . . . . . Self-Inflicted Damage 24 | . 19 . . . . 5 Shots 2 | . 2 . . . . . Rammed 5 | . . 1 . . . 4 Targets Rammed 5 | . . 1 . . . 4 Kicked . | . . . . . . . Crushed . | . . . . . . . Highest Temperature 379 | . 124 379 . . . 24 Average Temperature 56 | . 20 86 . . . 10 Received Heat Transfer 990 | . 384 231 69 . 63 243 Siege Activations . | . . . . . . . Martial Activations . | . . . . . . . Shielding Activations . | . . . . . . . Robots Disrupted . | . . . . . . . Combat Hostiles . | . . . . . . . Robots Corrupted . | . . . . . . . Combat Hostiles . | . . . . . . . Parts Fried . | . . . . . . . Impact Corruptions . | . . . . . . . Robots Melted . | . . . . . . . Combat Hostiles . | . . . . . . . Parts Melted 1 | . . 1 . . . . Heat Transferred 1961 | . . 1850 . . . 111 Parts Sabotaged . | . . . . . . . Parts Stolen . | . . . . . . . Parts Stripped . | . . . . . . . Power Chain Reactions . | . . . . . . . Alert | -11 -10 -9 -9 -9 -8 -8 ------- Run | Yrd Mat Mat Min Exi Min Mat Maximum Alert Level 2 | . . 2 1 . . . Low Security (%) 83 | 100 100 48 35 . 100 100 Level 1 15 | . . 44 64 . . . Level 2 1 | . . 6 . . . . Level 3 . | . . . . . . . Level 4 . | . . . . . . . Level 5 . | . . . . . . . High Security . | . . . . . . . Max Security . | . . . . . . . Peak Influence 498 | 5 148 498 243 . 70 150 Initial 193 | . . 37 193 . . 19 Average 96 | 1 66 184 215 . 38 36 Influence Increases 1804 | 20 510 784 70 . 110 310 Destroy 0b10 Robot/C 860 | . 280 420 60 . 40 60 Destroy 0b10 Robot/NC 50 | 20 20 5 . . . 5 Destroy Leader 234 | . 62 120 10 . 10 32 Successful Hack 36 | . 20 13 . . . 3 Select Force Hacks 30 | . 30 . . . . . Disable Machine 30 | . 15 . . . . 15 Destroy Structure 69 | . 68 1 . . . . Partial Spotted 45 | . . 15 . . . 30 Lose Combat Pursuer 450 | . 15 210 . . 60 165 Influence Decreases 1664 | 20 422 374 345 223 60 220 Entered New Map 610 | . . 51 305 223 . 31 Time Decay 968 | 20 406 303 40 . 40 159 Lost Part 86 | . 16 20 . . 20 30 Squads Dispatched 9 | . 3 5 . . . 1 Investigation 4 | . 2 2 . . . . Extermination . | . . . . . . . Reinforcement 5 | . 1 3 . . . 1 Assault . | . . . . . . . Garrison . | . . . . . . . Intercept . | . . . . . . . Searches Triggered . | . . . . . . . Construction Impeded . | . . . . . . . Haulers Reinforced . | . . . . . . . Active Scanning Responses . | . . . . . . . Cargo Convoy Interrupts . | . . . . . . . Stealth | -11 -10 -9 -9 -9 -8 -8 --------- Run | Yrd Mat Mat Min Exi Min Mat Distress Signals 10 | . 2 4 . . . 4 Communications Jammed . | . . . . . . . Distress Signals . | . . . . . . . Times Spotted 109 | . 24 41 7 . 14 23 Peak Tracking Total 14 | . 4 9 14 . 10 12 Tactical Retreats 15 | . 1 7 1 . 1 5 Traps | -11 -10 -9 -9 -9 -8 -8 ------- Run | Yrd Mat Mat Min Exi Min Mat Traps Triggered 2 | . . 2 . . . . Indirectly . | . . . . . . . Trap Hack Attempts . | . . . . . . . Triggered . | . . . . . . . Disarmed . | . . . . . . . Reprogrammed . | . . . . . . . Reused . | . . . . . . . Traps Extracted . | . . . . . . . Installed . | . . . . . . . Triggered . | . . . . . . . Machines | -11 -10 -9 -9 -9 -8 -8 ---------- Run | Yrd Mat Mat Min Exi Min Mat Machines Disabled 2 | . 1 . . . . 1 Max in Single Turn 1 | . 1 . . . . 1 Machines Repaired . | . . . . . . . Machines Dismantled . | . . . . . . . Machines Sabotaged . | . . . . . . . Overloaded Fab Kills . | . . . . . . . Hacking | -11 -10 -9 -9 -9 -8 -8 --------- Run | Yrd Mat Mat Min Exi Min Mat Machines Accessed 16 | . 7 5 . . . 4 Terminals 12 | . 5 4 . . . 3 Fabricators . | . . . . . . . Repair Stations 1 | . 1 . . . . . Recycling Units 1 | . 1 . . . . . Scanalyzers 2 | . . 1 . . . 1 Garrison Access . | . . . . . . . Total Hacks 43 | . 15 13 . . . 15 Successful 30 | . 6 11 . . . 13 Failed 13 | . 9 2 . . . 2 Catastrophic 1 | . 1 . . . . . Database Lockouts . | . . . . . . . Manual 27 | . 10 9 . . . 8 Terminals 34 | . 11 11 . . . 12 Fabricators . | . . . . . . . Repair Stations 3 | . 3 . . . . . Recycling Units 1 | . 1 . . . . . Scanalyzers 5 | . . 2 . . . 3 Garrison Access . | . . . . . . . Terminal Hacks 9 | . . 4 . . . 5 Robot Analysis 1 | . . . . . . 1 Terminal Index 1 | . . 1 . . . . Repair Station Index 1 | . . 1 . . . . Alert Level 2 | . . 1 . . . 1 Locate Traps 1 | . . . . . . 1 Maintenance Status 1 | . . . . . . 1 Zone Layout 2 | . . 1 . . . 1 Fabricator Hacks . | . . . . . . . Repair Station Hacks 2 | . 2 . . . . . Scan Component 1 | . 1 . . . . . Repair 1 | . 1 . . . . . Recycling Unit Hacks . | . . . . . . . Scanalyzer 5 | . . 2 . . . 3 Insert Component 3 | . . 1 . . . 2 Analyze 2 | . . 1 . . . 1 Garrison Access Hacks . | . . . . . . . Unauthorized Hacks 14 | . 4 5 . . . 5 Terminals 13 | . 3 5 . . . 5 Assimilate 3 | . . 2 . . . 1 Botnet 8 | . 3 2 . . . 3 Operators 2 | . . 1 . . . 1 Fabricators . | . . . . . . . Repair Stations . | . . . . . . . Recycling Units 1 | . 1 . . . . . Tunnel 1 | . 1 . . . . . Scanalyzers . | . . . . . . . Garrison Access . | . . . . . . . Data Cores Recovered . | . . . . . . . Used . | . . . . . . . Hacking Detections 14 | . 6 4 . . . 4 Full Trace Events 2 | . 1 1 . . . . Feedback Events 1 | . 1 . . . . . Corruption 1 | . 1 . . . . . Feedback Blocked . | . . . . . . . Robot Schematics Acquired . | . . . . . . . Robots Built . | . . . . . . . Authchips . | . . . . . . . Time . | . . . . . . . Total Robot Build Rating . | . . . . . . . Part Schematics Acquired 2 | . . 1 . . . 1 Parts Built . | . . . . . . . Authchips . | . . . . . . . Time . | . . . . . . . Total Part Build Rating . | . . . . . . . Part Studies Acquired . | . . . . . . . Parts Repaired 1 | . 1 . . . . . Time 13 | . 13 . . . . . Parts Recycled . | . . . . . . . Recycled Matter . | . . . . . . . Retrieved Matter . | . . . . . . . Retrieved Components . | . . . . . . . Parts Scanalyzed 2 | . . 1 . . . 1 Part Schematics Acquired 2 | . . 1 . . . 1 Parts Damaged . | . . . . . . . Bothacking | -11 -10 -9 -9 -9 -8 -8 ------------ Run | Yrd Mat Mat Min Exi Min Mat Used RIF Installer . | . . . . . . . Robots Hacked . | . . . . . . . Non-combat . | . . . . . . . Combat . | . . . . . . . Robot Hacks Applied . | . . . . . . . Relay Couplers Released . | . . . . . . . Fabnet Peak Effective % . | . . . . . . . Robots Rewired . | . . . . . . . Allies Hacked . | . . . . . . . Hacks Repelled . | . . . . . . . Allies | -11 -10 -9 -9 -9 -8 -8 -------- Run | Yrd Mat Mat Min Exi Min Mat Total Allies 1 | . . . . . . 1 Largest Group 1 | . . . . . . 1 Highest-Rated Group 10 | . . . . . . 10 Highest-Rated Ally 10 | . . . . . . 10 Total Orders . | . . . . . . . Ally Attacks . | . . . . . . . Total Damage . | . . . . . . . Kills . | . . . . . . . Allies Corrupted . | . . . . . . . Allies Melted . | . . . . . . . Intel | -11 -10 -9 -9 -9 -8 -8 ------- Run | Yrd Mat Mat Min Exi Min Mat Active Infowar (turns) 1268 | . 167 559 89 72 97 284 Optics 1101 | . . 559 89 72 97 284 Seismic 167 | . 167 . . . . . Robot Analysis Total 1 | . . . . . . 1 Derelict Logs Recovered . | . . . . . . . Drone Launches . | . . . . . . . Drone Recoveries . | . . . . . . . Exploration | -11 -10 -9 -9 -9 -8 -8 ------------- Run | Yrd Mat Mat Min Exi Min Mat Turns Passed 2580 | 123 1119 720 89 72 97 360 Spaces Moved 2193 | 42 583 561 157 157 164 529 Core 116 | 2 15 . . . . 99 Treads 822 | 40 568 214 . . . . Legs . | . . . . . . . Wheels . | . . . . . . . Hover 1255 | . . 347 157 157 164 430 Flight . | . . . . . . . Fastest Speed 40 | 50 50 46 46 46 46 40 Average Speed 89 | 154 157 92 46 46 46 45 Slowest Speed 240 | 160 160 240 46 46 110 100 Overloaded Moves . | . . . . . . . Propulsion Burnouts . | . . . . . . . Robots Hopped . | . . . . . . . Potential Cave-ins . | . . . . . . . Cave-ins Triggered . | . . . . . . . Exploration Rate (%) 43 | 4 73 51 19 55 40 60 Regions Visited 6 Branch Regions 3 Pre-discovered Areas 1 | . 1 . . . . . Known Exits Taken . | . . . . . . . Unknown Exits Taken 6 | 1 1 1 1 1 1 . Scrap Searched . | . . . . . . . Spaces Dug . | . . . . . . . Terrain Destroyed 79 | . 79 . . . . . Melee . | . . . . . . . Projectile . | . . . . . . . AOE 79 | . 79 . . . . . Terrain Rammed . | . . . . . . . Walls Destroyed . | . . . . . . . Machines Disabled . | . . . . . . . Actions | -11 -10 -9 -9 -9 -8 -8 --------- Run | Yrd Mat Mat Min Exi Min Mat Total 2549 | 68 703 673 163 156 180 606 Wait 69 | . 27 17 . . 14 11 Move 2187 | 41 582 560 156 156 163 529 Hop . | . . . . . . . Pick Up 39 | 3 14 13 . . . 9 Fast Attach 24 | 6 6 4 . . . 8 Attach 15 | . 1 8 . . 1 5 Detach 1 | . . 1 . . . . Swap 27 | . 11 8 1 . . 7 Drop 36 | . 10 17 1 . . 8 Fire 146 | 18 52 44 5 . 2 25 Melee . | . . . . . . . Ram 4 | . . . . . . 4 Kick . | . . . . . . . Crush 1 | . . 1 . . . . Escape Stasis . | . . . . . . . Rewire . | . . . . . . . Trap . | . . . . . . . Miscellaneous . | . . . . . . . Route ------- -11/Scrapyard -10/Materials (discovered 3 exits: *Mat x2 / [*Sub]) -9/Materials (discovered 3 exits: *Mat / [*Min x2]) -9/Mines -9/Exiles (discovered 2 exits: [*Min x2]) -8/Mines -8/Materials (discovered 2 exits: [*Fac x2]) History --------- Turn | Location | Event 14 | -11/Scrapyard | Discovered new exit (range 15) 124 | -11/Scrapyard | Entered Materials 325 | -10/Materials | Build established: Mutant 400 | -10/Materials | Discovered new exit (range 8) 715 | -10/Materials | Core integrity fell below 50% 832 | -10/Materials | Repaired Lgt. Treads 993 | -10/Materials | Discovered new exit (range 10) 1179 | -10/Materials | Discovered new exit (range 6) 1243 | -10/Materials | Entered another Materials area 1243 | -9/Materials | Evolved 2 slots: Utility x2 1640 | -9/Materials | Discovered new exit (range 3) 1957 | -9/Materials | Discovered new exit (range 13) 1960 | -9/Materials | Discovered new exit (range 18) 1963 | -9/Materials | Entered Mines 1971 | -9/Mines | Deemed a non-threat by the Exiles lab entrance 1972 | -9/Mines | Discovered new exit (range 5) 2004 | -9/Mines | Met a Derelict bent on vengeance 2027 | -9/Mines | Assembled infested the area 2030 | -9/Mines | Build established: Hacker-Mutant 2052 | -9/Mines | Entered Exiles 2060 | -9/Exiles | Discovered new exit (range 15) 2065 | -9/Exiles | Met 8R-AWN 2073 | -9/Exiles | Met EX-HEX 2087 | -9/Exiles | Met EX-BIN 2094 | -9/Exiles | Met EX-DEC 2118 | -9/Exiles | Discovered new exit (range 14) 2124 | -9/Exiles | Entered Mines 2213 | -8/Mines | Discovered new exit (range 11) 2221 | -8/Mines | Entered Materials 2221 | -8/Materials | Evolved 2 slots: Propulsion x2 2472 | -8/Materials | Discovered new exit (range 19) 2518 | -8/Materials | Lost 5 parts (2n2u1w) 2529 | -8/Materials | Core integrity fell below 50% 2568 | -8/Materials | Core integrity fell below 20% 2570 | -8/Materials | Discovered new exit (range 13) 2581 | -8/Materials | Destroyed by Y-45 Defender with Heavy Assault Rifle Last Messages --------------- 02514_ Acquired Lightning Gun. 02516_ M-13 Machinist repairs C-17 Slicer. 02516_ Acquired Lightning Gun. 02517_ Lightning Gun severed. 02518_ Acquired Lightning Gun. 02519_ Lightning Gun severed. 02522_ Hacking Suite severed. 02524_ C-17 Slicer destroyed. 02526_ Lightning Gun destroyed. 02528_ Acquired Blade Saw. 02531_ M-13 Machinist repairs C-17 Slicer. 02533_ Blade Saw destroyed. 02537_ Critical hit (Burn: +37). 02537_ Adv. Visual Processing Unit severed. 02542_ N ,EZA 02570_ EXIT=FOUND 02572_ Acquired Particle Cannon. 02574_ Particle Cannon severed. 02574_ Acquired Particle Cannon. 02580_ Particle Cannon severed. Map ----- +----------------------------------------------------+ | | | ???????????????????????????????????????????????? | | ???????????????????????????????????????????????? | | ???????????????????????????????? ???????????## | | ????????????????????????????# """"""" #???##### | | ????????????????????????????# """"""" #???# | | ????????????????????????????# """"""" #???# ### | | ????????????????????????????# """"""" #???# #?## | | ????????????????????????????# """"""" #???# #??# | | ????????????????????????????# #???# #?? | | ??????????????????????????#######+######### #?? | | ???????????##?????????????# #?? | | ???????????# ????????????# +?? | | ???????????# < ??????????# #??" | | ???????????# ??????????# ##### #########??G | | ?????????### ?????????# #####+#####??????" | | ????????? ????????# ## #?????? | | ????????# ??????## ## """ #??????# | | ????????# ####### # """ #?????? | | ????????# # """ #?????? | | ????????+ / #?????? | | ????????# # #?????? | | ????????????##########Y### # " " #?????? | | ????????????????# * m ## ## "R" #?????? | | ????????????????# c # ## """ #?????? | | ????????????????# @]## ######+####?????? | | ????????????????# ] ## #????# #????????? | | ????????????????# ## #????# #?????????# | | ????????????????# """ ## #????# #????????? | | ????????????????# """ ## #????# #????????? | | ????????????????# """ ## ###### #?????????? | | ????????????????# ## #?????????? | | ????????????????########### #?????????? | | ??????????????????????????+ #?????????? | | ??????????????????????????# #?????? | | ??????????????????????????# ### ] | | ??????????????????????????# / | | ??????????????????????????# ###### ######### | | ??????????????????????????# ?????# | | ??????????????????????????# ??????# | | ??????????????????????????# ???????# | | ??????????????????????????#????????# ######### | | ???????????????????????????????????# #???????? | | ???????????????????????????????????# #???????? | | ???????????????????????????????????# #???????? | | ???????????????????????????????????# #???????? | | ???????????????????????????????????# #???????? | | ???????????????????????????????????# #???????? | | ???????????????????????????????????# #???????? | | ???????????????????????????????????# #???????? | +----------------------------------------------------+ Best States ------------- Heat Dissipation 45 Energy Generation 14 Energy Capacity 280 Matter Stores 300 Matter Capacity 400 Sight Range 20 Terrain Scan Density 10 Armor Coverage 150 Evasion (%) 57 Recoil Reduction 2 Offensive Hacking 20 Item Schematics ----------------- Hacking Suite | -9/Materials | Scanalyzed Aerolev Unit | -8/Materials | Scanalyzed Robot Schematics ------------------ None Fabricated ------------ Nothing Repaired ---------- Lgt. Treads | 12% | -10/Materials Studied --------- None Alien Tech Used ----------------- None Achievements -------------- None Challenges ------------ None Game ------ Seed MeleeNetworkChainsaw Manual? 0 Play Time 00:41:45 Cumulative 25.9 hours Start 2026.01.18 @ 11:15:51 End 2026.01.18 @ 11:55:05 Sessions 1 Manual Loads 0 Difficulty Rogue Special Mode None Game No. 34 Rogue 34 Adventurer 0 Explorer 0 Win Type - Total 0 Types 0/0/0/0/0/0/0/0/0/0 Lore% 17 Gallery% 29 Achievement% 21 Wizard Run 0 Options --------- Layout 0 ASCII 0 Keyboard 1 Movement Arrows Keybinds 0 Fullscreen 1 Font 18/SmallcapsGlow Map View 76x50 Zoom Use 0% Tactical HUD 1 Map Filters NONE Filters NONE Steam 1 RUN: 06e8c9d2-8347-4906-b793-e51f0552896e